[Event "Titled Tuesday Blitz August 1 Late 2023"]
[White "Maksimovic, Bojan"]
[Black "Andreikin, Dmitry"]
[WhiteFideId "14408120"]
[BlackFideId "4158814"]
[WhiteElo "2854"]
[BlackElo "3051"]
[Result "0-1"]
[Round "7"]
[TimeControl "180+1"]
[Date "2023.08.01"]
[WhiteClock "0:00:02"]
[BlackClock "0:01:12"]
[Board "5"]

1. Nf3 {[%clk 0:03:00]}  b5 {[%clk 0:02:59]} 2. g3 {[%clk 0:03:01]}  Bb7 {[%clk 0:02:59]} 3. Bg2 {[%clk 0:03:01]}  Nf6 {[%clk 0:03:00]} 4. O-O {[%clk 0:03:02]}  c5 {[%clk 0:03:00]} 5. d3 {[%clk 0:03:02]}  d6 {[%clk 0:02:59]} 6. c3 {[%clk 0:03:01]}  g6 {[%clk 0:02:54]} 7. a4 {[%clk 0:02:57]}  b4 {[%clk 0:02:52]} 8. cxb4 {[%clk 0:02:56]}  cxb4 {[%clk 0:02:53]} 9. Nbd2 {[%clk 0:02:46]}  Bg7 {[%clk 0:02:53]} 10. Nc4 {[%clk 0:02:46]}  O-O {[%clk 0:02:52]} 11. Be3 {[%clk 0:02:45]}  Nd5 {[%clk 0:02:49]} 12. Qd2 {[%clk 0:02:43]}  Nxe3 {[%clk 0:02:47]} 13. Nxe3 {[%clk 0:02:35]}  Nc6 {[%clk 0:02:44]} 14. Rfc1 {[%clk 0:02:26]}  Na5 {[%clk 0:02:44]} 15. Qxb4 {[%clk 0:01:18]}  Rb8 {[%clk 0:02:42]} 16. Qa3 {[%clk 0:01:13]}  Bxf3 {[%clk 0:02:41]} 17. Bxf3 {[%clk 0:01:11]}  Bxb2 {[%clk 0:02:41]} 18. Qa2 {[%clk 0:01:12]}  Bxa1 {[%clk 0:02:38]} 19. Rxa1 {[%clk 0:01:12]}  e6 {[%clk 0:02:39]} 20. h4 {[%clk 0:01:08]}  d5 {[%clk 0:02:37]} 21. h5 {[%clk 0:01:07]}  Nb3 {[%clk 0:02:37]} 22. Re1 {[%clk 0:01:06]}  Qa5 {[%clk 0:02:35]} 23. Rd1 {[%clk 0:01:04]}  Nd4 {[%clk 0:02:31]} 24. Qa1 {[%clk 0:00:59]}  Qb4 {[%clk 0:02:18]} 25. Ng4 {[%clk 0:00:24]}  Rfc8 {[%clk 0:01:50]} 26. h6 {[%clk 0:00:14]}  Qb2 {[%clk 0:01:38]} 27. Nf6+ {[%clk 0:00:14]}  Kh8 {[%clk 0:01:36]} 28. a5 {[%clk 0:00:11]}  Nf5 {[%clk 0:01:33]} 29. e4 {[%clk 0:00:07]}  dxe4 {[%clk 0:01:28]} 30. dxe4 {[%clk 0:00:07]}  Qxa1 {[%clk 0:01:27]} 31. Rxa1 {[%clk 0:00:07]}  Nxh6 {[%clk 0:01:28]} 32. Rd1 {[%clk 0:00:03]}  Ng8 {[%clk 0:01:27]} 33. e5 {[%clk 0:00:02]}  Rb5 {[%clk 0:01:23]} 34. Nd7 {[%clk 0:00:02]}  Rxa5 {[%clk 0:01:21]} 35. Bb7 {[%clk 0:00:01]}  Rd8 {[%clk 0:01:20]} 36. Bc6 {[%clk 0:00:01]}  Rxe5 {[%clk 0:01:20]} 37. Ra1 {[%clk 0:00:02]}  Rxd7 {[%clk 0:01:16]} 38. Bxd7 {[%clk 0:00:02]}  a5 {[%clk 0:01:17]} 39. Be8 {[%clk 0:00:03]}  Kg7 {[%clk 0:01:17]} 40. Kg2 {[%clk 0:00:03]}  Nf6 {[%clk 0:01:17]} 41. Bc6 {[%clk 0:00:04]}  Rc5 {[%clk 0:01:17]} 42. Bf3 {[%clk 0:00:04]}  h5 {[%clk 0:01:18]} 43. Ra4 {[%clk 0:00:04]}  g5 {[%clk 0:01:18]} 44. Kf1 {[%clk 0:00:05]}  g4 {[%clk 0:01:18]} 45. Be2 {[%clk 0:00:05]}  Nd5 {[%clk 0:01:19]} 46. Bd3 {[%clk 0:00:04]}  Nb4 {[%clk 0:01:17]} 47. Be4 {[%clk 0:00:05]}  f5 {[%clk 0:01:17]} 48. Bb7 {[%clk 0:00:05]}  Kf6 {[%clk 0:01:17]} 49. Ra3 {[%clk 0:00:06]}  e5 {[%clk 0:01:17]} 50. Ke2 {[%clk 0:00:05]}  e4 {[%clk 0:01:17]} 51. Kf1 {[%clk 0:00:05]}  Ke5 {[%clk 0:01:18]} 52. Ke2 {[%clk 0:00:06]}  Rc2+ {[%clk 0:01:15]} 53. Kf1 {[%clk 0:00:06]}  Rc5 {[%clk 0:01:14]} 54. Ke2 {[%clk 0:00:06]}  Kd4 {[%clk 0:01:15]} 55. Kd2 {[%clk 0:00:05]}  Rc2+ {[%clk 0:01:14]} 56. Kd1 {[%clk 0:00:05]}  Rxf2 {[%clk 0:01:13]} 57. Rxa5 {[%clk 0:00:06]}  e3 {[%clk 0:01:12]} 58. Ra4 {[%clk 0:00:06]}  Kc5 {[%clk 0:01:11]} 59. Ra3 {[%clk 0:00:05]}  Rd2+ {[%clk 0:01:11]} 60. Ke1 {[%clk 0:00:05]}  Nc2+ {[%clk 0:01:10]} 61. Kf1 {[%clk 0:00:05]}  e2+ {[%clk 0:01:11]} 62. Kf2 {[%clk 0:00:02]}  e1=Q# {[%clk 0:01:12]} 0-1


[Site "https://www.chess.com"]

[Event "Titled Tuesday Blitz August 1 Late 2023"]
[White "Pichot, Alan"]
[Black "Pranav, V"]
[WhiteFideId "110973"]
[BlackFideId "25060783"]
[WhiteElo "2842"]
[BlackElo "3018"]
[Result "1-0"]
[Round "7"]
[TimeControl "180+1"]
[Date "2023.08.01"]
[WhiteClock "0:00:42"]
[BlackClock "0:00:00"]
[Board "6"]

1. e4 {[%clk 0:03:00]}  e5 {[%clk 0:02:59]} 2. Nf3 {[%clk 0:03:01]}  Nc6 {[%clk 0:02:59]} 3. Bb5 {[%clk 0:03:01]}  a6 {[%clk 0:03:00]} 4. Ba4 {[%clk 0:03:02]}  Nf6 {[%clk 0:03:00]} 5. d3 {[%clk 0:03:02]}  d6 {[%clk 0:03:00]} 6. c4 {[%clk 0:03:02]}  g6 {[%clk 0:03:01]} 7. h3 {[%clk 0:03:03]}  Bg7 {[%clk 0:03:01]} 8. O-O {[%clk 0:03:03]}  O-O {[%clk 0:03:02]} 9. Nc3 {[%clk 0:03:04]}  Nd7 {[%clk 0:03:03]} 10. Bg5 {[%clk 0:03:04]}  f6 {[%clk 0:02:57]} 11. Be3 {[%clk 0:03:04]}  Nc5 {[%clk 0:02:50]} 12. Bxc6 {[%clk 0:03:03]}  bxc6 {[%clk 0:02:50]} 13. Bxc5 {[%clk 0:02:59]}  dxc5 {[%clk 0:02:51]} 14. Qa4 {[%clk 0:02:59]}  Qd6 {[%clk 0:02:51]} 15. Qa5 {[%clk 0:02:58]}  Rf7 {[%clk 0:02:50]} 16. Rad1 {[%clk 0:02:46]}  Bf8 {[%clk 0:02:49]} 17. Nd2 {[%clk 0:02:38]}  Qxd3 {[%clk 0:01:58]} 18. Qa4 {[%clk 0:02:36]}  Qd8 {[%clk 0:01:34]} 19. Nb3 {[%clk 0:02:36]}  Qe8 {[%clk 0:01:22]} 20. Na5 {[%clk 0:02:30]}  Bd7 {[%clk 0:01:20]} 21. Rd3 {[%clk 0:02:30]}  Rb8 {[%clk 0:01:19]} 22. Qc2 {[%clk 0:02:16]}  Bd6 {[%clk 0:01:14]} 23. Rfd1 {[%clk 0:02:16]}  Qe7 {[%clk 0:01:12]} 24. Qe2 {[%clk 0:02:14]}  Kg7 {[%clk 0:01:08]} 25. Qd2 {[%clk 0:02:08]}  f5 {[%clk 0:01:01]} 26. b3 {[%clk 0:02:05]}  Rbf8 {[%clk 0:00:57]} 27. Rxd6 {[%clk 0:02:01]}  cxd6 {[%clk 0:00:33]} 28. Qxd6 {[%clk 0:02:02]}  Be8 {[%clk 0:00:24]} 29. Qxe7 {[%clk 0:01:42]}  Rxe7 {[%clk 0:00:25]} 30. Na4 {[%clk 0:01:42]}  fxe4 {[%clk 0:00:19]} 31. Nxc5 {[%clk 0:01:42]}  e3 {[%clk 0:00:18]} 32. fxe3 {[%clk 0:01:42]}  g5 {[%clk 0:00:18]} 33. Rd6 {[%clk 0:01:26]}  Rf6 {[%clk 0:00:18]} 34. Rd8 {[%clk 0:01:27]}  Bg6 {[%clk 0:00:13]} 35. Nab7 {[%clk 0:01:23]}  h5 {[%clk 0:00:10]} 36. Nd6 {[%clk 0:01:13]}  h4 {[%clk 0:00:09]} 37. b4 {[%clk 0:01:06]}  Bh5 {[%clk 0:00:04]} 38. e4 {[%clk 0:01:00]}  Bg6 {[%clk 0:00:03]} 39. a4 {[%clk 0:00:58]}  Rf8 {[%clk 0:00:03]} 40. Rxf8 {[%clk 0:00:58]}  Kxf8 {[%clk 0:00:03]} 41. Nxa6 {[%clk 0:00:58]}  Ra7 {[%clk 0:00:02]} 42. b5 {[%clk 0:00:58]}  cxb5 {[%clk 0:00:02]} 43. axb5 {[%clk 0:00:59]}  Be8 {[%clk 0:00:02]} 44. Kf2 {[%clk 0:00:54]}  Bd7 {[%clk 0:00:01]} 45. Ke3 {[%clk 0:00:44]}  Ke7 {[%clk 0:00:01]} 46. Nf5+ {[%clk 0:00:45]}  Bxf5 {[%clk 0:00:02]} 47. exf5 {[%clk 0:00:46]}  Kf6 {[%clk 0:00:02]} 48. Ke4 {[%clk 0:00:46]}  Rd7 {[%clk 0:00:02]} 49. b6 {[%clk 0:00:45]}  Rd4+ {[%clk 0:00:01]} 50. Ke3 {[%clk 0:00:46]}  Rd7 {[%clk 0:00:02]} 51. c5 {[%clk 0:00:42]}  Kxf5 {[%clk 0:00:00]} 52. c6 {[%clk 0:00:42]} 1-0


[Site "https://www.chess.com"]

[Event "Titled Tuesday Blitz August 1 Late 2023"]
[White "Rozen, Eytan"]
[Black "Grischuk, Alexander"]
[WhiteFideId "2816750"]
[BlackFideId "4126025"]
[WhiteElo "2777"]
[BlackElo "3002"]
[Result "0-1"]
[Round "7"]
[TimeControl "180+1"]
[Date "2023.08.01"]
[WhiteClock "0:00:00"]
[BlackClock "0:00:03"]
[Board "7"]

1. e4 {[%clk 0:03:00]}  e6 {[%clk 0:03:00]} 2. d4 {[%clk 0:03:00]}  d5 {[%clk 0:03:00]} 3. e5 {[%clk 0:02:57]}  c5 {[%clk 0:03:01]} 4. c3 {[%clk 0:02:58]}  Nc6 {[%clk 0:03:01]} 5. Nf3 {[%clk 0:02:59]}  Bd7 {[%clk 0:03:02]} 6. Be2 {[%clk 0:02:55]}  Nge7 {[%clk 0:03:02]} 7. O-O {[%clk 0:02:51]}  Nf5 {[%clk 0:03:02]} 8. Bd3 {[%clk 0:02:47]}  cxd4 {[%clk 0:03:01]} 9. Bxf5 {[%clk 0:02:47]}  exf5 {[%clk 0:03:02]} 10. cxd4 {[%clk 0:02:47]}  Be7 {[%clk 0:03:02]} 11. Nc3 {[%clk 0:02:47]}  Be6 {[%clk 0:03:02]} 12. Ne2 {[%clk 0:02:47]}  g5 {[%clk 0:03:02]} 13. Ne1 {[%clk 0:02:45]}  f4 {[%clk 0:02:59]} 14. Nd3 {[%clk 0:02:36]}  Qb6 {[%clk 0:02:58]} 15. Ne1 {[%clk 0:02:28]}  O-O-O {[%clk 0:02:48]} 16. a3 {[%clk 0:02:17]}  f6 {[%clk 0:02:34]} 17. b4 {[%clk 0:02:07]}  fxe5 {[%clk 0:02:26]} 18. dxe5 {[%clk 0:02:06]}  d4 {[%clk 0:02:24]} 19. Nd3 {[%clk 0:01:56]}  Kb8 {[%clk 0:02:22]} 20. Rb1 {[%clk 0:01:53]}  Bc4 {[%clk 0:01:32]} 21. b5 {[%clk 0:01:33]}  Bxd3 {[%clk 0:01:32]} 22. Qxd3 {[%clk 0:01:28]}  Nxe5 {[%clk 0:01:32]} 23. Qe4 {[%clk 0:01:26]}  Bf6 {[%clk 0:01:29]} 24. Bb2 {[%clk 0:01:23]}  Nc4 {[%clk 0:01:27]} 25. Qd3 {[%clk 0:01:20]}  Nxb2 {[%clk 0:01:23]} 26. Rxb2 {[%clk 0:01:21]}  Rhe8 {[%clk 0:01:21]} 27. Rc1 {[%clk 0:01:20]}  Qe6 {[%clk 0:01:14]} 28. Rbc2 {[%clk 0:01:15]}  Qe4 {[%clk 0:00:42]} 29. Qc4 {[%clk 0:01:13]}  Be5 {[%clk 0:00:43]} 30. a4 {[%clk 0:00:37]}  h5 {[%clk 0:00:31]} 31. a5 {[%clk 0:00:36]}  g4 {[%clk 0:00:25]} 32. b6 {[%clk 0:00:34]}  a6 {[%clk 0:00:25]} 33. Qb4 {[%clk 0:00:21]}  h4 {[%clk 0:00:18]} 34. Nc3 {[%clk 0:00:06]}  Qc6 {[%clk 0:00:09]} 35. Na4 {[%clk 0:00:03]}  Qb5 {[%clk 0:00:08]} 36. Qa3 {[%clk 0:00:02]}  d3 {[%clk 0:00:07]} 37. Rc7 {[%clk 0:00:02]}  d2 {[%clk 0:00:06]} 38. Rd1 {[%clk 0:00:02]}  Qe2 {[%clk 0:00:03]} 39. Rxb7+ {[%clk 0:00:01]}  Kxb7 {[%clk 0:00:04]} 40. Nc5+ {[%clk 0:00:02]}  Ka8 {[%clk 0:00:03]} 41. b7+ {[%clk 0:00:00]}  Ka7 {[%clk 0:00:03]} 0-1


[Site "https://www.chess.com"]

[Event "Titled Tuesday Blitz August 1 Late 2023"]
[White "Matlakov, Maxim"]
[Black "Volovich, Vasily"]
[WhiteFideId "4168003"]
[BlackFideId "34169676"]
[WhiteElo "2972"]
[BlackElo "2749"]
[Result "1-0"]
[Round "7"]
[TimeControl "180+1"]
[Date "2023.08.01"]
[WhiteClock "0:01:08"]
[BlackClock "0:00:00"]
[Board "9"]

1. e4 {[%clk 0:03:00]}  e6 {[%clk 0:02:59]} 2. d4 {[%clk 0:03:01]}  d5 {[%clk 0:02:57]} 3. e5 {[%clk 0:03:00]}  c5 {[%clk 0:02:57]} 4. c3 {[%clk 0:03:01]}  Nc6 {[%clk 0:02:57]} 5. Nf3 {[%clk 0:03:02]}  Bd7 {[%clk 0:02:55]} 6. Be2 {[%clk 0:03:02]}  f6 {[%clk 0:02:55]} 7. O-O {[%clk 0:03:01]}  fxe5 {[%clk 0:02:55]} 8. Nxe5 {[%clk 0:03:02]}  Nxe5 {[%clk 0:02:55]} 9. dxe5 {[%clk 0:03:03]}  Qc7 {[%clk 0:02:56]} 10. c4 {[%clk 0:03:00]}  d4 {[%clk 0:02:55]} 11. Re1 {[%clk 0:02:58]}  Bc6 {[%clk 0:02:51]} 12. Bh5+ {[%clk 0:02:57]}  g6 {[%clk 0:02:49]} 13. Bf3 {[%clk 0:02:58]}  O-O-O {[%clk 0:02:37]} 14. Nd2 {[%clk 0:02:57]}  Bg7 {[%clk 0:02:32]} 15. Ne4 {[%clk 0:02:36]}  Bxe4 {[%clk 0:02:12]} 16. Bxe4 {[%clk 0:02:23]}  Bxe5 {[%clk 0:02:08]} 17. g3 {[%clk 0:02:23]}  Ne7 {[%clk 0:02:02]} 18. Bg5 {[%clk 0:02:19]}  Bd6 {[%clk 0:02:00]} 19. Qd3 {[%clk 0:02:17]}  Rde8 {[%clk 0:01:44]} 20. Bxe7 {[%clk 0:02:13]}  Rxe7 {[%clk 0:01:42]} 21. a3 {[%clk 0:02:10]}  Rf8 {[%clk 0:01:12]} 22. b4 {[%clk 0:02:06]}  Ref7 {[%clk 0:01:10]} 23. Re2 {[%clk 0:02:01]}  Kb8 {[%clk 0:01:04]} 24. Rb1 {[%clk 0:02:01]}  cxb4 {[%clk 0:00:46]} 25. axb4 {[%clk 0:02:02]}  Be5 {[%clk 0:00:44]} 26. c5 {[%clk 0:02:01]}  h5 {[%clk 0:00:39]} 27. Bg2 {[%clk 0:01:44]}  h4 {[%clk 0:00:37]} 28. Rbe1 {[%clk 0:01:41]}  hxg3 {[%clk 0:00:36]} 29. hxg3 {[%clk 0:01:42]}  Rf5 {[%clk 0:00:26]} 30. Ra1 {[%clk 0:01:08]}  Bg7 {[%clk 0:00:14]} 31. Rea2 {[%clk 0:01:08]}  a6 {[%clk 0:00:13]} 32. Rxa6 {[%clk 0:01:07]}  bxa6 {[%clk 0:00:00]} 33. Qxa6 {[%clk 0:01:08]} 1-0


[Site "https://www.chess.com"]

[Event "Titled Tuesday Blitz August 1 Late 2023"]
[White "Sjugirov, Sanan"]
[Black "Jaracz, Pawel"]
[WhiteFideId "4189302"]
[BlackFideId "1102222"]
[WhiteElo "2951"]
[BlackElo "2731"]
[Result "1-0"]
[Round "7"]
[TimeControl "180+1"]
[Date "2023.08.01"]
[WhiteClock "0:00:30"]
[BlackClock "0:00:00"]
[Board "10"]

1. d4 {[%clk 0:03:00]}  d5 {[%clk 0:02:57]} 2. c4 {[%clk 0:03:01]}  c6 {[%clk 0:02:58]} 3. Nf3 {[%clk 0:03:01]}  Nf6 {[%clk 0:02:58]} 4. e3 {[%clk 0:03:02]}  Bf5 {[%clk 0:02:55]} 5. Nc3 {[%clk 0:03:01]}  e6 {[%clk 0:02:56]} 6. Nh4 {[%clk 0:03:02]}  Bg6 {[%clk 0:02:55]} 7. Be2 {[%clk 0:03:00]}  Nbd7 {[%clk 0:02:50]} 8. Nxg6 {[%clk 0:02:58]}  hxg6 {[%clk 0:02:50]} 9. Qc2 {[%clk 0:02:57]}  Bd6 {[%clk 0:02:40]} 10. cxd5 {[%clk 0:02:45]}  exd5 {[%clk 0:02:38]} 11. Bd2 {[%clk 0:02:44]}  Qe7 {[%clk 0:02:35]} 12. O-O-O {[%clk 0:02:41]}  O-O-O {[%clk 0:02:22]} 13. f3 {[%clk 0:02:26]}  Bb4 {[%clk 0:01:47]} 14. Kb1 {[%clk 0:02:18]}  Kb8 {[%clk 0:01:44]} 15. Bd3 {[%clk 0:02:15]}  Nb6 {[%clk 0:01:42]} 16. h3 {[%clk 0:02:09]}  c5 {[%clk 0:01:14]} 17. dxc5 {[%clk 0:02:04]}  Bxc5 {[%clk 0:01:11]} 18. Rhe1 {[%clk 0:02:03]}  Rc8 {[%clk 0:01:11]} 19. Qb3 {[%clk 0:02:01]}  Rhd8 {[%clk 0:01:07]} 20. Rc1 {[%clk 0:01:55]}  Nc4 {[%clk 0:00:58]} 21. Bxc4 {[%clk 0:01:38]}  dxc4 {[%clk 0:00:58]} 22. Qc2 {[%clk 0:01:39]}  Bb4 {[%clk 0:00:51]} 23. e4 {[%clk 0:01:38]}  Ka8 {[%clk 0:00:46]} 24. Bg5 {[%clk 0:01:36]}  Qc5 {[%clk 0:00:35]} 25. Bxf6 {[%clk 0:01:32]}  gxf6 {[%clk 0:00:35]} 26. Red1 {[%clk 0:01:32]}  Bxc3 {[%clk 0:00:21]} 27. Qxc3 {[%clk 0:01:32]}  Rxd1 {[%clk 0:00:20]} 28. Rxd1 {[%clk 0:01:33]}  Qg5 {[%clk 0:00:10]} 29. Qxc4 {[%clk 0:01:29]}  Rb8 {[%clk 0:00:08]} 30. Qc2 {[%clk 0:01:19]}  Qe5 {[%clk 0:00:07]} 31. a3 {[%clk 0:01:19]}  Qe6 {[%clk 0:00:05]} 32. Qd2 {[%clk 0:01:14]}  f5 {[%clk 0:00:05]} 33. Qd7 {[%clk 0:01:08]}  Qf6 {[%clk 0:00:04]} 34. exf5 {[%clk 0:01:05]}  gxf5 {[%clk 0:00:05]} 35. Qd6 {[%clk 0:01:02]}  Qg5 {[%clk 0:00:04]} 36. g4 {[%clk 0:00:59]}  fxg4 {[%clk 0:00:04]} 37. hxg4 {[%clk 0:01:00]}  Qe3 {[%clk 0:00:04]} 38. Qd3 {[%clk 0:01:00]}  Qe5 {[%clk 0:00:04]} 39. Qd5 {[%clk 0:00:57]}  Qf4 {[%clk 0:00:03]} 40. Rd4 {[%clk 0:00:55]}  Qe3 {[%clk 0:00:02]} 41. Rd3 {[%clk 0:00:52]}  Qe2 {[%clk 0:00:01]} 42. Ka2 {[%clk 0:00:49]}  a6 {[%clk 0:00:01]} 43. Rb3 {[%clk 0:00:49]}  Qe7 {[%clk 0:00:01]} 44. Rb6 {[%clk 0:00:48]}  Ka7 {[%clk 0:00:01]} 45. Qd4 {[%clk 0:00:46]}  Ka8 {[%clk 0:00:01]} 46. Qf6 {[%clk 0:00:43]}  Qd7 {[%clk 0:00:01]} 47. Rd6 {[%clk 0:00:40]}  Qc7 {[%clk 0:00:00]} 48. Rb6 {[%clk 0:00:30]} 1-0


[Site "https://www.chess.com"]

[Event "Titled Tuesday Blitz August 1 Late 2023"]
[White "Demidov, Mikhail"]
[Black "Bjelobrk, Igor"]
[WhiteFideId "4197143"]
[BlackFideId "4300726"]
[WhiteElo "2937"]
[BlackElo "2682"]
[Result "1-0"]
[Round "7"]
[TimeControl "180+1"]
[Date "2023.08.01"]
[WhiteClock "0:00:12"]
[BlackClock "0:00:08"]
[Board "12"]

1. Nf3 {[%clk 0:03:00]}  c5 {[%clk 0:02:58]} 2. e3 {[%clk 0:03:00]}  Nf6 {[%clk 0:02:52]} 3. d4 {[%clk 0:03:00]}  e6 {[%clk 0:02:52]} 4. Bd3 {[%clk 0:02:59]}  d5 {[%clk 0:02:45]} 5. O-O {[%clk 0:02:59]}  Nc6 {[%clk 0:02:46]} 6. b3 {[%clk 0:02:58]}  cxd4 {[%clk 0:02:44]} 7. exd4 {[%clk 0:02:59]}  Bd6 {[%clk 0:02:44]} 8. Bb2 {[%clk 0:02:59]}  O-O {[%clk 0:02:44]} 9. Nbd2 {[%clk 0:02:59]}  b6 {[%clk 0:02:45]} 10. Re1 {[%clk 0:02:56]}  Bb7 {[%clk 0:02:45]} 11. a3 {[%clk 0:02:57]}  Rc8 {[%clk 0:02:44]} 12. Qe2 {[%clk 0:02:56]}  Qc7 {[%clk 0:02:44]} 13. Ne5 {[%clk 0:02:53]}  Ne7 {[%clk 0:02:42]} 14. Rac1 {[%clk 0:02:45]}  Ng6 {[%clk 0:02:41]} 15. g3 {[%clk 0:02:45]}  Qe7 {[%clk 0:02:42]} 16. b4 {[%clk 0:02:43]}  a5 {[%clk 0:02:39]} 17. c3 {[%clk 0:02:42]}  Rc7 {[%clk 0:02:37]} 18. h4 {[%clk 0:02:31]}  axb4 {[%clk 0:02:21]} 19. axb4 {[%clk 0:02:30]}  Ra8 {[%clk 0:02:21]} 20. Ra1 {[%clk 0:02:29]}  Rcc8 {[%clk 0:02:20]} 21. h5 {[%clk 0:02:26]}  Nf8 {[%clk 0:02:20]} 22. h6 {[%clk 0:02:25]}  g6 {[%clk 0:02:20]} 23. Bb5 {[%clk 0:02:10]}  Ne4 {[%clk 0:02:17]} 24. Qe3 {[%clk 0:01:57]}  Qc7 {[%clk 0:01:57]} 25. Nxe4 {[%clk 0:01:22]}  dxe4 {[%clk 0:01:58]} 26. c4 {[%clk 0:01:22]}  f5 {[%clk 0:01:34]} 27. Bc3 {[%clk 0:01:12]}  Bxe5 {[%clk 0:01:34]} 28. dxe5 {[%clk 0:01:12]}  Bc6 {[%clk 0:01:25]} 29. Ba6 {[%clk 0:01:08]}  Rd8 {[%clk 0:01:23]} 30. Bd4 {[%clk 0:01:06]}  Rab8 {[%clk 0:01:21]} 31. Rec1 {[%clk 0:01:01]}  Rd7 {[%clk 0:01:16]} 32. b5 {[%clk 0:01:00]}  Ba8 {[%clk 0:01:15]} 33. c5 {[%clk 0:00:59]}  Qd8 {[%clk 0:01:14]} 34. c6 {[%clk 0:00:57]}  Ra7 {[%clk 0:00:51]} 35. Rc3 {[%clk 0:00:42]}  Qc7 {[%clk 0:00:44]} 36. Rac1 {[%clk 0:00:40]}  Rxa6 {[%clk 0:00:38]} 37. bxa6 {[%clk 0:00:39]}  b5 {[%clk 0:00:39]} 38. a7 {[%clk 0:00:39]}  Rc8 {[%clk 0:00:39]} 39. Bc5 {[%clk 0:00:36]}  Qxe5 {[%clk 0:00:33]} 40. Qd4 {[%clk 0:00:33]}  Qxd4 {[%clk 0:00:33]} 41. Bxd4 {[%clk 0:00:33]}  Kf7 {[%clk 0:00:29]} 42. Rc5 {[%clk 0:00:32]}  e5 {[%clk 0:00:27]} 43. Bxe5 {[%clk 0:00:30]}  Ne6 {[%clk 0:00:26]} 44. Rxb5 {[%clk 0:00:28]}  Ng5 {[%clk 0:00:23]} 45. Rb8 {[%clk 0:00:23]}  Nf3+ {[%clk 0:00:23]} 46. Kf1 {[%clk 0:00:23]}  Rxc6 {[%clk 0:00:23]} 47. Rxc6 {[%clk 0:00:22]}  Bxc6 {[%clk 0:00:23]} 48. Bc3 {[%clk 0:00:18]}  g5 {[%clk 0:00:21]} 49. a8=Q {[%clk 0:00:17]}  Bxa8 {[%clk 0:00:21]} 50. Rxa8 {[%clk 0:00:18]}  Kg6 {[%clk 0:00:22]} 51. Ra5 {[%clk 0:00:17]}  Nh2+ {[%clk 0:00:20]} 52. Kg2 {[%clk 0:00:17]}  Ng4 {[%clk 0:00:21]} 53. Bg7 {[%clk 0:00:16]}  e3 {[%clk 0:00:20]} 54. fxe3 {[%clk 0:00:15]}  Nxe3+ {[%clk 0:00:20]} 55. Kf3 {[%clk 0:00:16]}  Ng4 {[%clk 0:00:20]} 56. Ra6+ {[%clk 0:00:13]}  Kh5 {[%clk 0:00:20]} 57. Bf8 {[%clk 0:00:14]}  Nh2+ {[%clk 0:00:19]} 58. Kg2 {[%clk 0:00:14]}  Ng4 {[%clk 0:00:20]} 59. Re6 {[%clk 0:00:12]}  f4 {[%clk 0:00:14]} 60. gxf4 {[%clk 0:00:12]}  gxf4 {[%clk 0:00:14]} 61. Kf3 {[%clk 0:00:12]}  Kg5 {[%clk 0:00:14]} 62. Bd6 {[%clk 0:00:12]}  Nh2+ {[%clk 0:00:08]} 63. Ke4 {[%clk 0:00:12]} 1-0


[Site "https://www.chess.com"]

[Event "Titled Tuesday Blitz August 1 Late 2023"]
[White "Vlassov, Nikolai"]
[Black "Perez Ponsa, Federico"]
[WhiteFideId "4103360"]
[BlackFideId "117927"]
[WhiteElo "2587"]
[BlackElo "2882"]
[Result "0-1"]
[Round "7"]
[TimeControl "180+1"]
[Date "2023.08.01"]
[WhiteClock "0:00:00"]
[BlackClock "0:00:10"]
[Board "14"]

1. e4 {[%clk 0:03:00]}  c6 {[%clk 0:02:57]} 2. d4 {[%clk 0:02:59]}  d5 {[%clk 0:02:58]} 3. f3 {[%clk 0:02:58]}  Qb6 {[%clk 0:02:57]} 4. Nc3 {[%clk 0:02:57]}  dxe4 {[%clk 0:02:56]} 5. Bc4 {[%clk 0:02:36]}  Nf6 {[%clk 0:02:49]} 6. fxe4 {[%clk 0:02:35]}  e5 {[%clk 0:02:45]} 7. dxe5 {[%clk 0:02:28]}  Ng4 {[%clk 0:02:44]} 8. Qe2 {[%clk 0:02:25]}  Nxe5 {[%clk 0:02:43]} 9. Nf3 {[%clk 0:02:21]}  Nxc4 {[%clk 0:02:42]} 10. Qxc4 {[%clk 0:02:21]}  Be6 {[%clk 0:02:42]} 11. Qd4 {[%clk 0:02:15]}  Nd7 {[%clk 0:02:39]} 12. Qxb6 {[%clk 0:02:08]}  axb6 {[%clk 0:02:40]} 13. Ng5 {[%clk 0:02:03]}  Bc4 {[%clk 0:02:36]} 14. b3 {[%clk 0:02:01]}  Ba6 {[%clk 0:02:33]} 15. Bb2 {[%clk 0:01:58]}  h6 {[%clk 0:02:32]} 16. Nf3 {[%clk 0:01:58]}  b5 {[%clk 0:02:30]} 17. O-O-O {[%clk 0:01:57]}  b4 {[%clk 0:02:29]} 18. Na4 {[%clk 0:01:54]}  Bb5 {[%clk 0:02:28]} 19. Rxd7 {[%clk 0:01:49]}  Bxa4 {[%clk 0:02:26]} 20. Rxb7 {[%clk 0:01:46]}  Bb5 {[%clk 0:02:23]} 21. Ne5 {[%clk 0:01:41]}  Bd6 {[%clk 0:02:03]} 22. Nxf7 {[%clk 0:01:29]}  Bf4+ {[%clk 0:02:02]} 23. Kb1 {[%clk 0:01:29]}  Rf8 {[%clk 0:02:03]} 24. Ne5 {[%clk 0:01:22]}  Bxe5 {[%clk 0:01:57]} 25. Bxe5 {[%clk 0:01:21]}  Rf2 {[%clk 0:01:58]} 26. Rd1 {[%clk 0:01:08]}  Rd8 {[%clk 0:01:54]} 27. Rxd8+ {[%clk 0:01:06]}  Kxd8 {[%clk 0:01:55]} 28. Rxg7 {[%clk 0:01:06]}  Re2 {[%clk 0:01:52]} 29. Bf6+ {[%clk 0:01:01]}  Kc8 {[%clk 0:01:51]} 30. e5 {[%clk 0:01:02]}  c5 {[%clk 0:01:49]} 31. h4 {[%clk 0:00:56]}  Bc6 {[%clk 0:01:49]} 32. g4 {[%clk 0:00:39]}  Be4 {[%clk 0:01:47]} 33. Kc1 {[%clk 0:00:35]}  Rxc2+ {[%clk 0:01:44]} 34. Kd1 {[%clk 0:00:35]}  Rxa2 {[%clk 0:01:40]} 35. e6 {[%clk 0:00:35]}  Bf3+ {[%clk 0:01:38]} 36. Kc1 {[%clk 0:00:34]}  Re2 {[%clk 0:01:38]} 37. Rg8+ {[%clk 0:00:33]}  Kc7 {[%clk 0:01:35]} 38. e7 {[%clk 0:00:32]}  Bc6 {[%clk 0:01:34]} 39. g5 {[%clk 0:00:29]}  hxg5 {[%clk 0:01:35]} 40. hxg5 {[%clk 0:00:29]}  c4 {[%clk 0:01:25]} 41. bxc4 {[%clk 0:00:28]}  b3 {[%clk 0:01:25]} 42. g6 {[%clk 0:00:29]}  Rc2+ {[%clk 0:01:05]} 43. Kd1 {[%clk 0:00:27]}  Bf3+ {[%clk 0:00:48]} 44. Ke1 {[%clk 0:00:27]}  Re2+ {[%clk 0:00:17]} 45. Kf1 {[%clk 0:00:26]}  Rxe7 {[%clk 0:00:17]} 46. Bxe7 {[%clk 0:00:16]}  b2 {[%clk 0:00:17]} 47. Bd6+ {[%clk 0:00:16]}  Kb6 {[%clk 0:00:14]} 48. Rb8+ {[%clk 0:00:16]}  Bb7 {[%clk 0:00:14]} 49. Bc5+ {[%clk 0:00:00]}  Kc6 {[%clk 0:00:10]} 0-1


[Site "https://www.chess.com"]